bitfinex-derivatives/quotes_BTCF0:USTF0_20250218
["timestamp","ask_amount","ask_price","bid_price","bid_amount"]
[1739875195604,0.0529,95956.0,95945.0,0.3608]
[1739875195805,0.3608,95954.0,95941.0,0.3608]
[1739875196002,0.2084574,95951.0,95950.0,0.2084542]
[1739875198011,0.0499,95952.0,95951.0,0.2084563]
[1739875198609,0.2583542,95952.0,95951.0,0.2084563]
[1739875199214,0.2084542,95952.0,95951.0,0.2084563]
[1739875201612,0.0492,95956.0,95955.0,0.2084477]
[1739875201817,0.3608,95964.0,95944.0,0.0521177]
[1739875201818,0.3077324,95963.0,95956.0,0.2084455]
[1739875202019,0.2084363,95961.0,95956.0,0.2084455]
[1739875202319,0.2084363,95961.0,95956.0,0.18760096]
[1739875202507,0.2084371,95960.0,95956.0,0.18760096]
[1739875202707,0.0493,95962.0,95956.0,0.18760096]
[1739875202910,0.21363166,95957.0,95956.0,0.18760096]
[1739875204027,0.00518836,95957.0,95956.0,0.18760096]
[1739875204514,0.21363166,95957.0,95956.0,0.18760096]
[1739875212929,0.21363166,95957.0,95956.0,0.18860096]
[1739875213526,0.21363166,95957.0,95956.0,0.18760096]
[1739875213725,0.00518836,95957.0,95950.0,0.049]
[1739875213927,0.00518836,95957.0,95949.0,0.3608]
[1739875213928,0.2084585,95950.0,95949.0,0.3608]
[1739875214127,0.2084759,95942.0,95941.0,0.2084777]
[1739875214427,0.2084759,95942.0,95941.0,0.2578777]
[1739875214824,0.2084759,95942.0,95939.0,0.3609564]
[1739875214825,0.0498,95948.0,95939.0,0.3609564]
[1739875215033,0.2084803,95940.0,95939.0,0.5694387]
[1739875216329,0.2084803,95940.0,95939.0,0.5714387]
[1739875216824,0.2084803,95940.0,95939.0,0.5744387]
[1739875222343,0.0498,95948.0,95939.0,0.3659564]
[1739875222930,0.2084803,95942.0,95941.0,0.2084766]
[1739875224039,0.2084803,95940.0,95939.0,0.5326477]
[1739875224238,0.2084803,95940.0,95939.0,0.5316077]
[1739875224938,0.2084803,95940.0,95939.0,0.5296077]
[1739875225631,0.2084803,95940.0,95939.0,0.7400901]
[1739875225830,0.2084803,95940.0,95939.0,0.7370901]
[1739875226031,0.2084803,95940.0,95939.0,0.5714388]
[1739875226744,0.2084803,95940.0,95939.0,0.5744388]
[1739875227244,0.0498,95948.0,95942.0,0.2084757]
[1739875228138,0.2084737,95943.0,95942.0,0.2084757]
[1739875228538,0.2084737,95943.0,95942.0,0.2104757]
[1739875228837,0.2084737,95943.0,95942.0,0.2124757]
[1739875229237,0.2084737,95943.0,95942.0,0.2104757]
[1739875229436,0.2084737,95943.0,95942.0,0.2124757]
[1739875230038,0.0498,95948.0,95942.0,0.004]
[1739875230240,0.2084703,95947.0,95946.0,0.208465]
[1739875231235,0.2084703,95947.0,95942.0,0.004]
[1739875231236,0.2084737,95943.0,95942.0,0.004]
[1739875231435,0.2084998,95931.0,95930.0,0.06982989]
[1739875231634,0.2084998,95931.0,95930.0,0.20971568]
[1739875232239,0.2084998,95931.0,95930.0,0.23924326]
[1739875232542,0.2084998,95931.0,95930.0,0.24424326]
[1739875233055,0.0978,95933.0,95932.0,0.2084976]
[1739875233056,0.0494,95933.0,95932.0,0.2084976]
[1739875234142,0.00015585,95940.0,95939.0,0.2084824]
[1739875235549,0.00015585,95940.0,95939.0,0.2104824]
[1739875235946,0.00015585,95940.0,95939.0,0.2134824]
[1739875236847,0.00015585,95940.0,95939.0,0.2612824]
[1739875238047,0.3608,95956.0,95939.0,0.0528]
[1739875238346,0.10308,95967.0,95962.0,0.2084316]
[1739875238541,0.2084303,95963.0,95962.0,0.2084316]
[1739875239250,0.2084336,95962.0,95959.0,0.2084385]
[1739875239645,0.2084336,95962.0,95960.0,0.2084361]
[1739875240042,0.2084336,95962.0,95961.0,0.2084346]
[1739875242152,0.2104336,95962.0,95961.0,0.2084346]
[1739875249752,0.208439,95959.0,95958.0,0.02914489]
[1739875250053,0.2084455,95956.0,95955.0,0.2084469]
[1739875251250,0.2084455,95956.0,95955.0,0.23821841]
[1739875251953,0.002,95956.0,95955.0,0.23821841]
[1739875252655,0.002,95956.0,95955.0,0.28841841]
[1739875253755,0.2104455,95956.0,95955.0,0.28841841]
[1739875263857,0.2104455,95956.0,95955.0,0.2539793]
[1739875264549,0.002,95956.0,95955.0,0.2539793]
[1739875267562,0.2084286,95964.0,95962.0,0.2084325]
[1739875267748,0.21365366,95963.0,95962.0,0.2084325]
[1739875268364,0.21365366,95963.0,95962.0,0.18758926]
[1739875269061,0.21565366,95963.0,95962.0,0.18758926]
[1739875269762,0.21565366,95963.0,95962.0,0.1028078]
[1739875275256,0.00722336,95963.0,95955.0,0.07997151]
[1739875275556,0.208442,95959.0,95958.0,0.2084401]
[1739875275867,0.208442,95959.0,95958.0,0.12365735]
[1739875277467,0.209442,95959.0,95958.0,0.12365735]
[1739875280066,0.208442,95959.0,95958.0,0.12365735]
[1739875280262,0.209442,95959.0,95958.0,0.12365735]
[1739875284268,0.001,95959.0,95955.0,0.07997151]
[1739875284569,0.2084455,95956.0,95955.0,0.07997151]
[1739875284771,0.2084455,95956.0,95955.0,0.28841921]
[1739875286673,0.3608,95956.0,95953.0,0.00015632]
[1739875286870,0.2084498,95954.0,95953.0,0.00015632]
[1739875288063,0.2084498,95954.0,95953.0,0.00011632]
[1739875288270,0.23373683,95954.0,95953.0,0.00011632]
[1739875288471,0.2084498,95954.0,95953.0,0.00011632]
[1739875289764,0.2094498,95954.0,95953.0,0.00011632]
[1739875290269,0.2094498,95954.0,95948.0,0.02576526]
[1739875290473,0.001,95954.0,95943.0,0.2084719]
[1739875290772,0.2084716,95944.0,95943.0,0.2084719]
[1739875291175,0.2562716,95944.0,95943.0,0.2084719]
[1739875291673,0.2562716,95944.0,95942.0,0.0479]
[1739875291674,0.2084737,95943.0,95942.0,0.0479]
[1739875292075,0.2084737,95943.0,95942.0,0.07401236]
[1739875292569,0.2588737,95943.0,95942.0,0.07401236]
[1739875292771,0.2588737,95943.0,95942.0,0.02611236]
[1739875292970,0.2588737,95943.0,95938.0,0.21004717]
[1739875292971,0.2084824,95939.0,95938.0,0.21004717]
[1739875293981,0.2084824,95939.0,95938.0,0.23602051]
[1739875294278,0.2084824,95939.0,95938.0,0.23902051]
[1739875294777,0.2084824,95939.0,95938.0,0.24302051]
[1739875302575,0.0996,95944.0,95938.0,0.08073671]
[1739875302783,0.2562727,95944.0,95943.0,0.2084737]
[1739875302974,0.2084727,95944.0,95943.0,0.2084737]
[1739875303481,0.3608,95945.0,95944.0,0.2084716]
[1739875304477,0.2084654,95947.0,95944.0,0.002]
[1739875304679,0.2084654,95947.0,95946.0,0.2084672]
[1739875306677,0.2084654,95947.0,95946.0,0.2094672]
[1739875306982,0.2084654,95947.0,95946.0,0.2104672]
[1739875309781,0.2084584,95951.0,95950.0,0.2084514]
[1739875313704,0.0462,95955.0,95947.0,0.0468]
[1739875313902,0.2084629,95948.0,95947.0,0.0468]
[1739875314606,0.2084629,95948.0,95947.0,0.255265]
[1739875315206,0.2084629,95948.0,95947.0,0.256265]
[1739875315810,0.2084629,95948.0,95947.0,0.257265]
[1739875318100,0.2084629,95948.0,95947.0,0.002]
[1739875321115,0.2084629,95948.0,95947.0,0.210465]
[1739875321499,0.03570508,95948.0,95947.0,0.210465]
[1739875321706,0.2084549,95953.0,95952.0,0.2084517]
[1739875322617,0.0462,95955.0,95954.0,0.2084498]
[1739875323811,0.2566477,95955.0,95954.0,0.2084498]
[1739875325214,0.0482,95955.0,95954.0,0.2084498]
[1739875325407,0.2566477,95955.0,95954.0,0.2084498]
[1739875325813,0.0482,95955.0,95954.0,0.2084498]
[1739875326222,0.002,95955.0,95954.0,0.2084498]
[1739875328915,0.002,95955.0,95954.0,0.13393482]
[1739875339315,0.002,95955.0,95954.0,0.12054134]
[1739875345328,0.002,95955.0,95954.0,0.10848721]
[1739875353424,4e-05,95963.0,95962.0,0.2084325]
[1739875353629,0.0482,95967.0,95966.0,0.2084238]
[1739875357139,0.2566216,95967.0,95966.0,0.2084238]
[1739875357329,0.2084281,95965.0,95957.0,0.16343354]
[1739875357528,0.0913,95964.0,95957.0,0.16343354]
[1739875357834,0.0913,95964.0,95962.0,0.2084322]
[1739875358031,0.208439,95959.0,95958.0,0.2084392]
[1739875358534,0.2997287,95964.0,95962.0,0.208432]
[1739875358729,0.2997287,95964.0,95957.0,0.00015632]
[1739875358930,0.2997287,95964.0,95963.0,0.2084303]
[1739875360138,0.2997281,95964.0,95963.0,0.001]
[1739875360341,0.2997281,95964.0,95963.0,0.002]
[1739875361040,0.2997281,95964.0,95963.0,0.001]
[1739875361940,0.0913,95964.0,95957.0,0.00015632]
[1739875362142,0.2084411,95959.0,95958.0,0.2084409]
[1739875363245,0.0913,95964.0,95957.0,0.00015632]
[1739875363442,0.2084411,95958.0,95957.0,0.00015632]
[1739875363836,0.0913,95964.0,95957.0,0.00015632]
[1739875364037,0.5692411,95958.0,95957.0,0.00011632]
[1739875368542,0.60078523,95958.0,95957.0,0.00011632]
[1739875369647,0.5692411,95958.0,95957.0,0.00011632]
[1739875369846,0.0913,95964.0,95958.0,0.2084391]
[1739875370153,0.0913,95964.0,95962.0,0.208432]
[1739875370332,0.2997294,95964.0,95963.0,0.2084303]
[1739875370538,0.2997294,95964.0,95963.0,0.18758728]
[1739875372752,0.2084294,95964.0,95963.0,0.18758728]
[1739875376556,0.2084294,95964.0,95963.0,0.16882856]
[1739875376749,0.208439,95959.0,95958.0,0.0764117]
[1739875377054,0.208439,95959.0,95958.0,0.0322117]
[1739875377245,0.3608,95960.0,95957.0,0.00011632]
[1739875377550,0.2987411,95958.0,95957.0,0.00011632]
[1739875378547,0.2987411,95958.0,95957.0,0.03246496]
[1739875381450,0.2987411,95958.0,95957.0,0.24090826]
[1739875381848,0.6595411,95958.0,95957.0,0.24090826]
[1739875382451,0.6145411,95958.0,95957.0,0.24090826]
[1739875382956,0.5692411,95958.0,95957.0,0.24090826]
[1739875384055,0.3608,95958.0,95957.0,0.24090826]
[1739875385451,0.208432,95963.0,95957.0,0.24090826]
[1739875385650,0.208432,95963.0,95962.0,0.2084325]
[1739875389258,0.0482,95967.0,95958.0,0.1339]
[1739875389259,0.208439,95959.0,95958.0,0.1339]
[1739875389448,0.208439,95959.0,95958.0,0.3423411]
[1739875391857,0.208439,95959.0,95957.0,0.03246496]
[1739875392159,0.2084411,95958.0,95957.0,0.03246496]
[1739875400453,0.0458,95961.0,95957.0,0.03246496]
[1739875400654,0.0458,95961.0,95958.0,0.0438]
[1739875400950,0.3608,95962.0,95961.0,0.2084346]
[1739875401258,0.3608,95962.0,95961.0,0.20080811]
[1739875402263,0.2566223,95967.0,95961.0,0.20080811]
[1739875403260,0.2084245,95966.0,95961.0,0.20080811]
[1739875403763,0.2084245,95966.0,95960.0,0.0445]
[1739875403764,0.0482,95967.0,95960.0,0.0445]
[1739875403954,0.0482,95967.0,95965.0,0.2084255]
[1739875404664,0.0482,95967.0,95966.0,0.0422]
[1739875405162,0.0482,95967.0,95965.0,0.2084255]
[1739875405463,0.36136001,95971.0,95970.0,0.2084151]
[1739875405761,0.3608,95971.0,95970.0,0.2084151]
[1739875406763,0.0444,95972.0,95970.0,0.2084151]
[1739875407561,0.0444,95972.0,95970.0,0.2552151]
[1739875409566,0.0444,95972.0,95970.0,0.2602151]
[1739875410162,0.0444,95972.0,95970.0,0.2582151]
[1739875411566,0.0444,95972.0,95970.0,0.2562151]
[1739875411861,0.0444,95972.0,95970.0,0.2572151]
[1739875412365,0.0444,95972.0,95970.0,0.2562151]
[1739875413152,0.0444,95972.0,95970.0,0.2552151]
[1739875415770,0.0444,95972.0,95970.0,0.2572151]
[1739875416267,0.0444,95972.0,95970.0,0.2104151]
[1739875416565,0.4072,95971.0,95970.0,0.002]
[1739875416771,0.4525,95971.0,95970.0,0.002]
[1739875418063,0.4525,95971.0,95970.0,0.001]
[1739875418262,0.6609129,95971.0,95970.0,0.001]
[1739875419573,0.2084166,95970.0,95966.0,0.2084225]
[1739875419869,0.2084178,95969.0,95966.0,0.2084225]
[1739875420471,0.2084204,95968.0,95966.0,0.2084225]
[1739875422273,0.2084304,95963.0,95960.0,0.5692368]
[1739875422475,0.0878,95962.0,95960.0,0.5692368]
[1739875424073,0.0878,95962.0,95960.0,0.3608]
[1739875424269,0.0878,95962.0,95961.0,0.2084346]
[1739875425569,0.0878,95962.0,95961.0,0.2094346]
[1739875425767,0.0878,95962.0,95961.0,0.2104346]
[1739875425967,0.0878,95962.0,95961.0,0.3836346]
[1739875426168,0.0878,95962.0,95961.0,0.2104346]
[1739875426476,0.0878,95962.0,95961.0,0.2094346]
[1739875427776,0.0441,95962.0,95961.0,0.2094346]
[1739875428175,0.0441,95962.0,95961.0,0.2104346]
[1739875428375,0.0441,95962.0,95961.0,0.2124346]
[1739875428777,0.0441,95962.0,95961.0,0.2104346]
[1739875430881,0.05983927,95967.0,95961.0,0.002]
[1739875431082,0.0448,95970.0,95961.0,0.002]
[1739875431883,0.2084219,95967.0,95966.0,0.2084178]
[1739875432979,0.2084219,95967.0,95966.0,0.18745506]
[1739875438484,0.0433,95969.0,95968.0,0.2084194]
[1739875439991,0.2517173,95969.0,95968.0,0.2084194]
[1739875440377,0.0433,95969.0,95960.0,0.3608]
[1739875440578,0.0433,95969.0,95964.0,0.2084279]
[1739875440579,0.2084274,95965.0,95964.0,0.2084279]
[1739875442683,0.2084274,95965.0,95960.0,0.3608]
[1739875442684,0.2517178,95969.0,95968.0,0.2084194]
[1739875449900,0.2517178,95969.0,95968.0,0.12723873]
[1739875456000,0.2517178,95969.0,95968.0,0.11451486]
[1739875457202,0.0448,95970.0,95968.0,0.11451486]
[1739875457408,0.2084178,95969.0,95968.0,0.11451486]
[1739875457705,0.3608,95972.0,95971.0,0.2084129]
[1739875458706,0.5692107,95972.0,95971.0,0.2084129]
[1739875460306,0.2084107,95972.0,95971.0,0.2084129]
[1739875462107,0.2084107,95972.0,95971.0,0.15149162]
[1739875468101,0.2084107,95972.0,95967.0,0.3608]
[1739875468303,0.2084107,95972.0,95971.0,0.2084129]
[1739875468916,0.2084194,95968.0,95964.0,0.089]
[1739875469210,0.2084194,95968.0,95967.0,0.2084216]
[1739875474820,0.2084113,95972.0,95971.0,0.2084129]
[1739875494630,0.2084194,95968.0,95967.0,0.0418]
[1739875497830,0.2084194,95968.0,95967.0,0.2502216]
[1739875498130,0.21351435,95973.0,95972.0,0.2084107]
[1739875498430,0.21351435,95973.0,95972.0,0.5692107]
[1739875498928,0.21351435,95973.0,95972.0,0.2084107]
[1739875502527,0.00510575,95973.0,95972.0,0.2084107]
[1739875502831,0.00510575,95973.0,95972.0,0.5692107]
[1739875503418,0.00510575,95973.0,95972.0,0.50637683]
[1739875509337,0.00510575,95973.0,95972.0,0.42160816]
[1739875509531,0.00510575,95973.0,95972.0,0.3608]
[1739875509838,0.0823,95986.0,95972.0,0.3608]
[1739875509839,0.041,95986.0,95972.0,0.3608]
[1739875510033,0.2083853,95984.0,95975.0,0.2084042]
[1739875510235,0.2083886,95983.0,95975.0,0.2084042]
[1739875510439,0.041,95986.0,95975.0,0.2084042]
[1739875510641,0.20851842,95976.0,95975.0,0.2084042]
[1739875511539,0.0851,95983.0,95973.0,0.0398]
[1739875511851,0.2084005,95978.0,95977.0,0.2083979]
[1739875512141,0.21365465,95978.0,95977.0,0.2083979]
[1739875514344,0.21365465,95978.0,95977.0,0.23294143]
[1739875518750,0.00525415,95978.0,95977.0,0.23294143]
[1739875520448,0.21365185,95978.0,95977.0,0.23294143]
[1739875520647,0.21365185,95978.0,95977.0,0.20964729]
[1739875521642,0.21365185,95978.0,95977.0,0.18868257]
[1739875526744,0.21365185,95978.0,95977.0,0.11769473]
[1739875532755,0.21365185,95978.0,95977.0,0.02454353]
[1739875532946,0.2084194,95968.0,95961.0,0.36152]
[1739875533260,0.2084194,95968.0,95967.0,0.06318128]
[1739875533754,0.2084194,95968.0,95967.0,0.02138128]
[1739875534061,0.2084325,95962.0,95961.0,0.3608]
[1739875534664,0.2084325,95962.0,95961.0,0.382317]
[1739875535564,0.2084325,95962.0,95961.0,0.385317]
[1739875535758,0.0395,95967.0,95961.0,0.385317]
[1739875535948,0.2084325,95962.0,95961.0,0.384317]
[1739875536155,0.2084325,95962.0,95961.0,0.388317]
[1739875536872,0.2084325,95962.0,95961.0,0.384317]
[1739875537055,0.2084325,95962.0,95961.0,0.386317]
[1739875537763,0.2084325,95962.0,95961.0,0.004]
[1739875541256,0.2084325,95962.0,95961.0,0.02593498]
[1739875541559,0.0832,95973.0,95961.0,0.02593498]
[1739875541764,0.2084111,95972.0,95968.0,0.35820651]
[1739875541961,0.00581416,95978.0,95975.0,0.2084022]
[1739875542156,0.2084021,95976.0,95969.0,0.0804]
[1739875542462,0.2084021,95976.0,95970.0,0.0422]
[1739875543369,0.2084021,95976.0,95975.0,0.2084042]
[1739875548768,0.2084021,95976.0,95975.0,0.02103544]
[1739875548969,0.041,95977.0,95970.0,0.2506143]
[1739875549165,0.2084119,95972.0,95971.0,0.2084129]
[1739875550558,0.2084119,95972.0,95971.0,0.2297958]
[1739875554571,0.2084119,95972.0,95971.0,0.0213829]
[1739875554772,0.2084151,95970.0,95969.0,0.40168]
[1739875554973,0.2084151,95970.0,95969.0,0.401]
[1739875555578,0.2084151,95970.0,95969.0,0.42232042]
[1739875556369,0.2084151,95970.0,95969.0,0.02132042]
[1739875556574,0.0786,95976.0,95967.0,0.2084208]
[1739875556776,0.2084194,95968.0,95967.0,0.2084208]
[1739875557278,0.0786,95976.0,95966.0,0.06849181]
[1739875557279,0.2084216,95967.0,95966.0,0.06849181]
[1739875557575,0.2084303,95963.0,95962.0,0.2084312]
[1739875558667,0.2084303,95963.0,95962.0,0.2094312]
[1739875559275,0.2084303,95963.0,95962.0,0.2114312]
[1739875559579,0.2084303,95963.0,95962.0,0.27482855]
[1739875560470,0.2084303,95963.0,95962.0,0.06639735]
[1739875560668,0.2084303,95963.0,95962.0,0.02469735]
[1739875560868,0.2084303,95963.0,95962.0,0.23312985]
[1739875561273,0.2084303,95963.0,95962.0,0.23212985]
[1739875561579,0.2084303,95963.0,95962.0,0.02569735]
[1739875561966,0.2084303,95963.0,95962.0,0.02469735]
[1739875562177,0.2084303,95963.0,95962.0,0.02269735]
[1739875562480,0.2084303,95963.0,95962.0,0.02469735]
[1739875569184,0.2084303,95963.0,95962.0,0.23312985]
[1739875570085,0.2084303,95963.0,95962.0,0.02469735]
[1739875571684,0.2084303,95963.0,95962.0,0.23312985]
[1739875572482,0.2084303,95963.0,95962.0,0.02469735]
[1739875584683,0.2084303,95963.0,95962.0,0.003]
[1739875589883,0.2084303,95963.0,95962.0,0.0425]
[1739875594085,0.2084303,95963.0,95962.0,0.0825]
[1739875596981,0.2084303,95963.0,95962.0,0.0425]
[1739875600988,0.2084303,95963.0,95962.0,0.0415]
[1739875601294,0.2084325,95962.0,95961.0,0.02163247]
[1739875601600,0.2084411,95958.0,95957.0,0.00011632]
[1739875601999,0.2084411,95958.0,95957.0,0.01963704]
[1739875602201,0.2084411,95958.0,95957.0,0.00011632]
[1739875604197,0.2084411,95958.0,95957.0,0.00411632]
[1739875604499,0.2084411,95958.0,95957.0,0.02351529]
[1739875605097,0.2084411,95958.0,95957.0,0.02651529]
[1739875612104,0.2084411,95958.0,95957.0,0.2084433]
[1739875612404,0.2084433,95957.0,95956.0,0.0188606]
[1739875612607,0.2084455,95956.0,95955.0,0.2472474]
[1739875613300,0.2084455,95956.0,95955.0,0.05809351]
[1739875614300,0.2084455,95956.0,95955.0,0.06209351]
[1739875614505,0.2084455,95956.0,95955.0,0.06509351]
[1739875618106,0.2084455,95956.0,95955.0,0.06429351]
[1739875623813,0.2084455,95956.0,95955.0,0.27274121]
[1739875636814,0.05640303,95956.0,95955.0,0.27274121]
[1739875637118,0.0779,95958.0,95955.0,0.27274121]
[1739875637819,0.2084455,95956.0,95955.0,0.27274121]
[1739875638117,0.2084455,95956.0,95955.0,0.26874121]
[1739875638318,0.2084455,95956.0,95955.0,0.27274121]
[1739875639817,0.0424,95957.0,95937.0,0.3608]
[1739875640023,0.208465,95947.0,95941.0,0.0403]
[1739875640922,0.208465,95947.0,95946.0,0.00615632]
[1739875641120,0.208465,95947.0,95946.0,0.01315632]
[1739875641418,0.208465,95947.0,95946.0,0.03158678]
[1739875641931,0.209465,95947.0,95946.0,0.03058678]
[1739875649211,0.334165,95947.0,95946.0,0.03058678]
[1739875650115,0.334165,95947.0,95946.0,0.02958678]
[1739875653028,0.16548038,95947.0,95946.0,0.02958678]
[1739875653225,0.334165,95947.0,95946.0,0.02958678]
[1739875655925,0.334165,95947.0,95946.0,0.01015632]
[1739875658132,0.333165,95947.0,95946.0,0.00815632]
[1739875658430,0.333165,95947.0,95946.0,0.00715632]
[1739875661425,0.333165,95947.0,95946.0,0.00565547]
[1739875662225,0.2084889,95936.0,95925.0,0.208512]
[1739875662528,0.2084889,95936.0,95926.0,0.04085632]
[1739875662745,0.2085085,95927.0,95926.0,0.04085632]
[1739875662935,0.2085085,95927.0,95926.0,0.06526503]
[1739875663330,0.5693085,95927.0,95926.0,0.06526503]
[1739875663540,0.5643085,95927.0,95926.0,0.06526503]
[1739875663743,0.5643085,95927.0,95918.0,0.4283879]
[1739875663744,0.2085259,95919.0,95918.0,0.00076]
[1739875664044,0.2085368,95914.0,95913.0,0.3608]
[1739875664238,0.2035368,95914.0,95913.0,0.38476896]
[1739875664459,0.1965368,95914.0,95913.0,0.38476896]
[1739875664854,0.0803,95918.0,95913.0,0.38476896]
[1739875665164,0.0388,95918.0,95915.0,0.2085325]
[1739875665460,0.2085346,95915.0,95914.0,0.0433]
[1739875665854,0.2085368,95914.0,95913.0,0.38476896]
[1739875666055,0.5693368,95914.0,95913.0,0.02396896]
[1739875666364,0.2085563,95905.0,95894.0,0.03441]
[1739875666564,0.2085563,95905.0,95904.0,0.02406004]
[1739875666763,0.2085563,95905.0,95904.0,0.00015632]
[1739875667365,0.2085563,95905.0,95904.0,0.02417458]
[1739875668368,0.16622193,95914.0,95904.0,0.02417458]
[1739875668663,0.2085489,95909.0,95906.0,0.208554]
[1739875668965,0.2085505,95908.0,95906.0,0.208554]
[1739875669563,0.0401,95917.0,95904.0,0.02417458]
[1739875670071,0.2085538,95907.0,95904.0,0.02417458]
[1739875670264,0.2085563,95905.0,95904.0,0.02417458]
[1739875670763,0.2500563,95905.0,95904.0,0.02417458]
[1739875671373,0.0521292,95924.0,95904.0,0.02417458]
[1739875671672,0.2085498,95909.0,95907.0,0.2085499]
[1739875671863,0.2085498,95909.0,95908.0,0.0399]
[1739875673468,0.2085498,95909.0,95908.0,0.0409]
[1739875673666,0.2085498,95909.0,95908.0,0.001]
[1739875674667,0.2085498,95909.0,95908.0,0.2095498]
[1739875675263,0.2085498,95909.0,95908.0,0.001]
[1739875677374,0.0415,95913.0,95908.0,0.2095498]
[1739875677671,0.2085453,95911.0,95908.0,0.5703498]
[1739875677871,0.2085455,95910.0,95909.0,0.0428]
[1739875678073,0.0417,95915.0,95909.0,0.0428]
[1739875678371,0.0417,95915.0,95913.0,0.2085385]
[1739875678672,0.0417,95915.0,95914.0,0.0796]
[1739875678873,0.2502346,95915.0,95914.0,0.0796]
[1739875679462,0.2502346,95915.0,95914.0,0.2881368]
[1739875679659,0.2512346,95915.0,95914.0,0.2881368]
[1739875680371,0.001,95915.0,95914.0,0.2881368]
[1739875681373,0.002,95915.0,95914.0,0.2881368]
[1739875681764,0.001,95915.0,95914.0,0.2881368]
[1739875682067,0.002,95915.0,95914.0,0.2881368]
[1739875682471,0.2105346,95915.0,95914.0,0.2881368]
[1739875686481,0.2105346,95915.0,95914.0,0.2475368]
[1739875686779,0.2105346,95915.0,95914.0,0.2424405]
[1739875689080,0.2105346,95915.0,95914.0,0.2085368]
[1739875692478,0.2085429,95912.0,95909.0,0.0428]
[1739875692681,0.0412,95911.0,95910.0,0.2085455]
[1739875693180,0.2497433,95911.0,95910.0,0.2085455]
[1739875693582,0.0412,95911.0,95910.0,0.2085455]
[1739875695080,0.0413,95922.0,95909.0,0.0428]
[1739875695276,0.2085448,95911.0,95909.0,0.31983751]
[1739875695478,0.2085448,95911.0,95910.0,0.2085455]
[1739875696480,0.2085448,95911.0,95910.0,0.12371847]
[1739875697271,0.2085455,95910.0,95909.0,0.0428]
[1739875699483,0.2085455,95910.0,95909.0,0.0438]
[1739875701379,0.0833,95918.0,95917.0,0.2085302]
[1739875701581,0.00015632,95923.0,95917.0,0.3608]
[1739875701776,0.00015632,95923.0,95922.0,0.2085194]
[1739875701982,0.20867352,95923.0,95922.0,0.2085194]
[1739875702485,0.2085237,95920.0,95919.0,0.042]
[1739875702780,0.2085259,95919.0,95918.0,0.0421]
[1739875703473,0.0413,95922.0,95920.0,0.2085237]
[1739875703674,0.0413,95922.0,95921.0,0.2085215]
[1739875703878,0.2498194,95922.0,95921.0,0.2085215]
[1739875704584,0.2085259,95919.0,95918.0,0.0421]
[1739875704987,0.2085259,95919.0,95917.0,0.36148]
[1739875704988,0.0443,95922.0,95917.0,0.3608]
[1739875705179,0.2085281,95918.0,95917.0,0.3608]
[1739875706980,0.2105281,95918.0,95917.0,0.3608]
[1739875707186,0.2125281,95918.0,95917.0,0.3608]
[1739875707686,0.2125281,95918.0,95917.0,0.30386628]
[1739875712177,0.2085542,95906.0,95905.0,0.36148]
[1739875712486,0.2085542,95906.0,95905.0,0.3608]
[1739875713892,0.2085542,95906.0,95905.0,0.3618]
[1739875720598,0.2085542,95906.0,95905.0,0.5703563]
[1739875721492,0.23017558,95906.0,95905.0,0.5703563]
[1739875722087,0.042,95911.0,95905.0,0.3618]
[1739875722295,0.042,95911.0,95910.0,0.16991357]
[1739875723686,0.2085322,95917.0,95916.0,0.2085301]
[1739875724394,0.2085368,95914.0,95913.0,0.3608]
[1739875726191,0.2085368,95914.0,95913.0,0.5693389]
[1739875726798,0.2095368,95914.0,95913.0,0.5693389]
[1739875726987,0.2105368,95914.0,95913.0,0.5693389]
[1739875728102,0.2105368,95914.0,95913.0,0.2085389]
[1739875728309,0.2105368,95914.0,95913.0,0.1342139]
[1739875728991,0.2085442,95911.0,95909.0,0.2085466]
[1739875729192,0.0803,95910.0,95909.0,0.2085466]
[1739875729387,0.0803,95910.0,95905.0,0.40198]
[1739875729388,0.0803,95910.0,95905.0,0.36148]
[1739875729603,0.2085542,95906.0,95905.0,0.5693548]
[1739875730503,0.0803,95910.0,95905.0,0.5693548]
[1739875730703,0.2085542,95906.0,95905.0,0.5693548]
[1739875731798,0.2085542,95906.0,95905.0,0.5703548]
[1739875734207,0.0411,95909.0,95908.0,0.2085498]
[1739875734208,0.2496476,95909.0,95908.0,0.2085498]
[1739875735400,0.2496476,95909.0,95908.0,0.2095498]
[1739875737405,0.0411,95909.0,95908.0,0.2095498]
[1739875746514,0.0411,95909.0,95908.0,0.3826498]
[1739875746709,0.0411,95909.0,95908.0,0.2095498]
[1739875747912,0.0411,95909.0,95908.0,0.14223289]
[1739875749108,0.2496476,95909.0,95908.0,0.14223289]
[1739875753422,0.0411,95909.0,95908.0,0.14223289]
[1739875754613,0.2496476,95909.0,95908.0,0.14223289]
[1739875756524,0.2496476,95909.0,95908.0,0.31533289]
[1739875756726,0.2496476,95909.0,95908.0,0.14223289]
[1739875759523,0.2496476,95909.0,95908.0,0.12684127]
[1739875761023,0.2496476,95909.0,95908.0,0.11415715]
[1739875765034,0.2496476,95909.0,95908.0,0.001]
[1739875765629,0.2085542,95906.0,95905.0,0.27697402]
[1739875766832,0.2085542,95906.0,95905.0,0.48553032]
[1739875767033,0.2085542,95906.0,95905.0,0.48653032]
[1739875770621,0.2085542,95906.0,95905.0,0.2095563]
[1739875772333,0.2085542,95906.0,95905.0,0.001]
[1739875772535,0.2085542,95906.0,95904.0,0.02436299]
[1739875772738,0.2085598,95904.0,95903.0,0.2085588]
[1739875773130,0.2085598,95904.0,95903.0,0.23017564]
[1739875775540,0.01867343,95904.0,95903.0,0.23017564]
[1739875775743,0.2085598,95904.0,95903.0,0.23017564]
[1739875780033,0.2085598,95904.0,95903.0,0.17107808]
[1739875782438,0.2085598,95904.0,95903.0,0.02161684]
[1739875782636,0.0377,95905.0,95897.0,0.3608]
[1739875782839,0.2085716,95898.0,95897.0,0.5886265]
[1739875784644,0.2095716,95898.0,95897.0,0.5886265]
[1739875787642,0.2095716,95898.0,95897.0,0.2278265]
[1739875798644,0.2095716,95898.0,95897.0,0.0192556]
[1739875798950,0.2095716,95898.0,95892.0,0.2085846]
[1739875798951,0.2085831,95893.0,95892.0,0.2085846]
[1739875799253,0.2085831,95893.0,95892.0,0.2276641]
[1739875800247,0.2095831,95893.0,95892.0,0.2276641]
[1739875801355,0.2105831,95893.0,95892.0,0.0190795]
[1739875801552,0.002,95893.0,95891.0,0.31738372]
[1739875801753,0.2085846,95892.0,95891.0,0.31738372]
[1739875802147,0.2085846,95892.0,95891.0,0.52597052]
[1739875802349,0.2085846,95892.0,95891.0,0.31738372]
[1739875802851,0.002,95892.0,95884.0,0.24032116]
[1739875803053,0.2085998,95885.0,95884.0,0.44892066]
[1739875804147,0.2085998,95885.0,95884.0,0.24032116]